fUST/lending_fUST_20240228
["ID","MTS","AMOUNT","RATE_DAILY","PERIOD"]
[315463240,1709052641647,-293.81113872,0.000189,2]
[315463241,1709052641659,-95.40690567,0.000189,2]
[315463242,1709052641668,-191.63855216,0.00019176,2]
[315463243,1709052641677,-269.34480669,0.00019177,2]
[315463244,1709052641686,-155.16292107,0.00019178,2]
[315463245,1709052641695,-500.0,0.00019178,2]
[315463246,1709052641703,-500.0,0.00019178,2]
[315463247,1709052641712,-500.0,0.00019178,2]
[315463248,1709052641721,-450.13004601,0.00019178,2]
[315463249,1709052641730,-151.0,0.00019178,2]
[315463250,1709052641739,-500.0,0.00019178,2]
[315463251,1709052641748,-220.04820398,0.00019178,2]
[315463252,1709052641757,-500.64514974,0.00019178,2]
[315463253,1709052641766,-724.84,0.00019178,2]
[315463254,1709052641775,-176.78341468,0.00019178,2]
[315463255,1709052641787,-1257.57658532,0.00019178,2]
[315463256,1709052641796,-500.0,0.00019178,2]
[315463257,1709052641806,-148.53159992,0.00019178,2]
[315463258,1709052641819,-182.91672941,0.00019178,2]
[315463259,1709052641828,-495.61212969,0.00019178,2]
[315463260,1709052641837,-500.0,0.00019178,2]
[315463261,1709052641846,-400.32969916,0.00019178,2]
[315463262,1709052641855,-1026.88,0.00019178,2]
[315463263,1709052641865,-500.0,0.00019178,2]
[315463264,1709052641874,-500.0,0.00019178,2]
[315463265,1709052641883,-92.0793123,0.00019178,2]
[315463266,1709052641897,-112.29208123,0.00019178,2]
[315463267,1709052641906,-241.11026349,0.00019178,2]
[315463268,1709052641915,-500.0,0.00019178,2]
[315463269,1709052641925,-500.0,0.00019178,2]
[315463270,1709052641936,-500.0,0.00019178,2]
[315463271,1709052641945,-500.0,0.00019178,2]
[315463272,1709052641955,-234.6909189,0.00019178,2]
[315463273,1709052641964,-500.65277545,0.00019178,2]
[315463274,1709052641974,-1000.0,0.00019178,2]
[315463275,1709052641984,-500.0,0.00019178,2]
[315463276,1709052641993,-522.5209825,0.00019178,2]
[315463277,1709052642004,-500.0,0.00019178,2]
[315463278,1709052642013,-501.12706915,0.00019178,2]
[315463279,1709052642022,-500.0,0.00019178,2]
[315463280,1709052642031,-500.0,0.00019178,2]
[315463281,1709052642041,-500.0,0.00019178,2]
[315463282,1709052642050,-500.0,0.00019178,2]
[315463283,1709052642059,-500.0,0.00019178,2]
[315463284,1709052642068,-500.0,0.00019178,2]
[315463285,1709052642078,-500.0,0.00019178,2]
[315463286,1709052642087,-500.0,0.00019178,2]
[315463287,1709052642096,-500.0,0.00019178,2]
[315463288,1709052642106,-500.0,0.00019178,2]
[315463289,1709052642117,-500.0,0.00019178,2]
[315463290,1709052642126,-501.05407253,0.00019178,2]
[315463291,1709052642135,-128.00826975,0.00019178,2]
[315463292,1709052642148,-371.99173025,0.00019178,2]
[315463293,1709052642157,-515.4162061,0.00019178,2]
[315463294,1709052642166,-500.0,0.00019178,2]
[315463295,1709052642175,-500.0,0.00019178,2]
[315463296,1709052642185,-618.37454632,0.00019178,2]
[315463297,1709052642194,-508.23691754,0.00019178,2]
[315463298,1709052642204,-500.0,0.00019178,2]
[315463299,1709052642213,-27.23891963,0.00019178,2]
[315463300,1709052642227,-472.76108037,0.00019178,2]
[315463301,1709052642237,-500.0,0.00019178,2]
[315463302,1709052642246,-500.32824519,0.00019178,2]
[315463303,1709052642255,-500.11571016,0.00019178,2]
[315463304,1709052642264,-500.0,0.00019178,2]
[315463305,1709052642273,-212.87883413,0.00019178,2]
[315463306,1709052642282,-500.0,0.00019178,2]
[315463307,1709052642291,-500.0,0.00019178,2]
[315463308,1709052642302,-500.0,0.00019178,2]
[315463309,1709052642311,-500.0,0.00019178,2]
[315463310,1709052642320,-519.59807134,0.00019178,2]
[315463311,1709052642329,-240.1435452,0.00019178,2]
[315463312,1709052642338,-500.0,0.00019178,2]
[315463313,1709052642347,-500.0,0.00019178,2]
[315463314,1709052642357,-500.0,0.00019178,2]
[315463315,1709052642366,-500.0,0.00019178,2]
[315463316,1709052642375,-500.0,0.00019178,2]
[315463317,1709052642384,-500.0,0.00019178,2]
[315463318,1709052642393,-497.28656827,0.00019178,2]
[315463319,1709052642402,-500.0,0.00019178,2]
[315463320,1709052642411,-500.0,0.00019178,2]
[315463321,1709052642420,-500.0,0.00019178,2]
[315463322,1709052642523,-500.0,0.00019178,2]
[315463323,1709052642533,-439.17138797,0.00019178,2]
[315463328,1709052643562,-156.54276469,0.000189,2]
[315463329,1709052643571,-11.51927809,0.00019178,2]
[315463330,1709052643581,-500.52309887,0.00019178,2]
[315463331,1709052643590,-36.99934266,0.00019178,2]
[315463332,1709052643601,-463.00065734,0.00019178,2]
[315463333,1709052643610,-911.19,0.00019178,2]
[315463334,1709052643619,-500.0,0.00019178,2]
[315463335,1709052643628,-500.0,0.00019178,2]
[315463336,1709052643638,-500.0,0.00019178,2]
[315463337,1709052643647,-43.79654416,0.00019178,2]
[315463338,1709052643658,-456.20345584,0.00019178,2]
[315463339,1709052643668,-55.30440015,0.00019178,2]
[315463341,1709052643680,-444.69559985,0.00019178,2]
[315463343,1709052643690,-500.0,0.00019178,2]
[315463344,1709052643699,-1000.0,0.00019178,2]
[315463345,1709052643707,-500.0,0.00019178,2]
[315463346,1709052643716,-148.59342322,0.00019178,2]
[315463354,1709052646539,-351.40657678,0.00019178,2]
[315463355,1709052646548,-148.59342322,0.00019178,2]
[315463356,1709052646561,-481.05076488,0.00019178,2]
[315463357,1709052646570,-500.0,0.00019178,2]
[315463358,1709052646579,-196.34728067,0.00019178,2]
[315463359,1709052646606,-303.65271933,0.00019178,2]
[315463360,1709052646615,-341.5224866,0.00019178,2]
[315463361,1709052646624,-500.0,0.00019178,2]
[315463362,1709052646633,-500.0,0.00019178,2]
[315463363,1709052646643,-500.0,0.00019178,2]
[315463364,1709052646653,-348.53156152,0.00019178,2]
[315463365,1709052646665,-151.46843848,0.00019178,2]
[315463366,1709052646680,-500.0,0.00019178,2]
[315463367,1709052646694,-500.0,0.00019178,2]
[315463368,1709052646708,-500.0,0.00019178,2]
[315463369,1709052646720,-500.0,0.00019178,2]
[315463370,1709052646730,-500.0,0.00019178,2]
[315463371,1709052646746,-500.0,0.00019178,2]
[315463372,1709052646759,-500.0,0.00019178,2]
[315463373,1709052646772,-500.0,0.00019178,2]
[315463374,1709052646785,-500.0,0.00019178,2]
[315463375,1709052646798,-500.0,0.00019178,2]
[315463376,1709052646811,-500.0,0.00019178,2]
[315463377,1709052646821,-500.0,0.00019178,2]
[315463378,1709052646833,-500.0,0.00019178,2]
[315463379,1709052646845,-500.0,0.00019178,2]
[315463380,1709052646858,-1670.81,0.00019178,2]
[315463381,1709052646871,-500.0,0.00019178,2]
[315463382,1709052646883,-500.0,0.00019178,2]
[315463383,1709052646899,-252.75507226,0.00019178,2]
[315463384,1709052646916,-500.0,0.00019178,2]
[315463385,1709052646928,-601.31095344,0.00019178,2]
[315463386,1709052646938,-500.0,0.00019178,2]
[315463387,1709052646953,-640.88483016,0.00019178,2]
[315463388,1709052646965,-500.0,0.00019178,2]
[315463389,1709052646980,-500.0,0.00019178,2]
[315463390,1709052646992,-500.0,0.00019178,2]
[315463391,1709052647004,-500.0,0.00019178,2]
[315463392,1709052647016,-500.0,0.00019178,2]
[315463393,1709052647029,-500.0,0.00019178,2]
[315463394,1709052647041,-451.77238634,0.00019178,2]
[315463395,1709052647056,-500.0,0.00019178,2]
[315463396,1709052647068,-500.0,0.00019178,2]
[315463397,1709052647082,-500.0,0.00019178,2]
[315463398,1709052647095,-500.0,0.00019178,2]
[315463399,1709052647107,-500.0,0.00019178,2]
[315463400,1709052647117,-500.0,0.00019178,2]
[315463401,1709052647127,-500.0,0.00019178,2]
[315463402,1709052647139,-500.0,0.00019178,2]
[315463403,1709052647150,-2070.59,0.00019178,2]
[315463404,1709052647163,-500.0,0.00019178,2]
[315463405,1709052647174,-500.0,0.00019178,2]
[315463406,1709052647187,-500.0,0.00019178,2]
[315463407,1709052647198,-500.0,0.00019178,2]
[315463408,1709052647209,-500.0,0.00019178,2]
[315463409,1709052647221,-500.0,0.00019178,2]
[315463410,1709052647232,-500.0,0.00019178,2]
[315463411,1709052647246,-500.0,0.00019178,2]
[315463412,1709052647258,-518.19944993,0.00019178,2]
[315463413,1709052647270,-500.0,0.00019178,2]
[315463414,1709052647282,-1757.59,0.00019178,2]
[315463415,1709052647294,-500.0,0.00019178,2]
[315463416,1709052647305,-500.0,0.00019178,2]
[315463417,1709052647317,-500.0,0.00019178,2]
[315463418,1709052647328,-500.0,0.00019178,2]
[315463419,1709052647339,-500.0,0.00019178,2]
[315463420,1709052647351,-500.0,0.00019178,2]
[315463421,1709052647362,-500.0,0.00019178,2]
[315463422,1709052647373,-500.0,0.00019178,2]
[315463423,1709052647384,-500.0,0.00019178,2]
[315463424,1709052647396,-500.0,0.00019178,2]
[315463425,1709052647407,-191.03394461,0.00019178,2]
[315463426,1709052647422,-308.96605539,0.00019178,2]
[315463427,1709052647433,-126.59996533,0.00019178,2]
[315463428,1709052647448,-66.662597,0.00019178,2]
[315463429,1709052647460,-500.0,0.00019178,2]
[315463430,1709052647471,-500.0,0.00019178,2]
[315463431,1709052647482,-500.0,0.00019178,2]
[315463432,1709052647496,-500.0,0.00019178,2]
[315463433,1709052647508,-1925.15,0.00019178,2]
[315463434,1709052647519,-500.0,0.00019178,2]
[315463435,1709052647529,-582.24951827,0.00019178,2]
[315463436,1709052647541,-713.67,0.00019178,2]
[315463437,1709052647552,-500.0,0.00019178,2]
[315463438,1709052647564,-1032.03,0.00019178,2]
[315463439,1709052647575,-501.22178081,0.00019178,2]
[315463440,1709052647586,-500.0,0.00019178,2]
[315463441,1709052647597,-500.0,0.00019178,2]
[315463442,1709052647608,-500.0,0.00019178,2]
[315463443,1709052647619,-500.0,0.00019178,2]
[315463444,1709052647630,-500.0,0.00019178,2]
[315463445,1709052647641,-500.0,0.00019178,2]
[315463446,1709052647653,-920.84,0.00019178,2]
[315463447,1709052647665,-501.3868524,0.00019178,2]
[315463448,1709052647676,-500.0,0.00019178,2]
[315463449,1709052647687,-500.0,0.00019178,2]
[315463450,1709052647699,-500.0,0.00019178,2]
[315463451,1709052647710,-155.0,0.00019178,2]
[315463452,1709052647721,-500.0,0.00019178,2]
[315463453,1709052647733,-501.22080587,0.00019178,2]
[315463454,1709052647748,-500.0,0.00019178,2]
[315463455,1709052647759,-500.0,0.00019178,2]
[315463456,1709052647771,-950.92,0.00019178,2]
[315463457,1709052647782,-500.0,0.00019178,2]
[315463458,1709052647791,-340.24388928,0.00019178,2]
[315463459,1709052647800,-500.0,0.00019178,2]
[315463460,1709052647810,-500.0,0.00019178,2]
[315463461,1709052647955,-1168.81,0.00019178,2]
[315463462,1709052647973,-500.0,0.00019178,2]
[315463463,1709052647985,-500.0,0.00019178,2]
[315463464,1709052647998,-500.0,0.00019178,2]
[315463465,1709052648009,-703.01,0.00019178,2]
[315463466,1709052648021,-500.0,0.00019178,2]
[315463467,1709052648030,-2961.77,0.00019178,2]
[315463468,1709052648040,-500.0,0.00019178,2]
[315463469,1709052648050,-500.0,0.00019178,2]
[315463470,1709052648060,-500.0,0.00019178,2]
[315463471,1709052648070,-500.0,0.00019178,2]
[315463472,1709052648079,-500.0,0.00019178,2]
[315463473,1709052648089,-929.24,0.00019178,2]
[315463474,1709052648098,-500.67580525,0.00019178,2]
[315463475,1709052648108,-500.0,0.00019178,2]
[315463476,1709052648117,-3808.16202461,0.00019178,2]
[315463477,1709052651393,10000.0,0.0001795,2]
[315463478,1709052666806,10000.0,0.0001795,2]
[315463479,1709052685577,1456.07,0.0001795,2]
[315463484,1709052918271,276.48462906,0.0001795,2]
[315463486,1709053062341,151.0,0.000275,120]
[315463492,1709053441071,206.125473,0.00017769,2]
[315463493,1709053562944,703.01327735,0.00017769,2]
[315463494,1709053576721,703.01327735,0.00017769,2]
[315463496,1709053596719,703.01327735,0.00017769,2]
[315463497,1709053612721,494.47580729,0.00017769,2]
[315463498,1709053689376,-155.16292107,0.00017951,2]
[315463499,1709053689400,-5748.6689999,0.00017952,2]
[315463500,1709053689427,-164.22477025,0.0001826,2]
[315463501,1709053689452,-901.26318639,0.00018331,2]
[315463502,1709053689475,-408.43540801,0.000189,2]
[315463503,1709053689498,-4387.93379692,0.00019175,4]
[315463504,1709053689520,-157.69966264,0.00019176,2]
[315463505,1709053689543,-677.52336534,0.00019176,2]
[315463506,1709053689565,-1747.70332613,0.00019177,2]
[315463507,1709053689588,-1519.40144155,0.00019177,2]
[315463508,1709053689610,-500.0,0.00019178,2]
[315463509,1709053689633,-500.0,0.00019178,2]
[315463510,1709053689656,-576.22818176,0.00019178,2]
[315463511,1709053689686,-500.0,0.00019178,2]
[315463512,1709053689709,-500.0,0.00019178,2]
[315463513,1709053689732,-618.23,0.00019178,2]
[315463514,1709053689755,-500.0,0.00019178,2]
[315463515,1709053689778,-500.0,0.00019178,2]
[315463516,1709053689804,-500.0,0.00019178,2]
[315463517,1709053689827,-500.0,0.00019178,2]
[315463518,1709053689852,-500.0,0.00019178,2]
[315463519,1709053689875,-189.39254927,0.00019178,2]
[315463520,1709053689898,-500.0,0.00019178,2]
[315463521,1709053689925,-500.0,0.00019178,2]
[315463522,1709053689949,-310.0,0.00019178,2]
[315463523,1709053689972,-500.0,0.00019178,2]
[315463524,1709053689994,-159.02038948,0.00019178,2]
[315463525,1709053690017,-210.59816599,0.00019178,2]
[315463526,1709053690040,-500.0,0.00019178,2]
[315463527,1709053690064,-500.0,0.00019178,2]
[315463528,1709053690088,-500.0,0.00019178,2]
[315463529,1709053690113,-500.0,0.00019178,2]
[315463530,1709053690136,-500.0,0.00019178,2]
[315463531,1709053690159,-500.0,0.00019178,2]
[315463532,1709053690183,-500.0,0.00019178,2]
[315463533,1709053690207,-500.0,0.00019178,2]
[315463534,1709053690229,-337.0351218,0.00019178,2]
[315463535,1709053690252,-500.0,0.00019178,2]
[315463536,1709053690276,-500.0,0.00019178,2]
[315463537,1709053690299,-238.47583384,0.00019178,2]
[315463538,1709053690323,-332.96266371,0.00019178,2]
[315463539,1709053690470,-500.0,0.00019178,2]
[315463540,1709053690493,-373.58267349,0.00019178,2]
[315463541,1709053690515,-502.85792086,0.00019178,2]
[315463542,1709053690539,-500.0,0.00019178,2]
[315463543,1709053690563,-1601.19,0.00019178,2]
[315463544,1709053690585,-500.0,0.00019178,2]
[315463545,1709053690608,-500.0,0.00019178,2]
[315463546,1709053690632,-500.0,0.00019178,2]
[315463547,1709053690655,-500.0,0.00019178,2]
[315463548,1709053690681,-500.0,0.00019178,2]
[315463549,1709053690704,-500.0,0.00019178,2]
[315463550,1709053690728,-500.0,0.00019178,2]
[315463551,1709053690751,-500.0,0.00019178,2]
[315463552,1709053690774,-500.0,0.00019178,2]
[315463553,1709053690799,-704.96,0.00019178,2]
[315463554,1709053690822,-500.0,0.00019178,2]
[315463555,1709053690845,-500.0,0.00019178,2]
[315463556,1709053690870,-500.0,0.00019178,2]
[315463557,1709053690892,-500.0,0.00019178,2]
[315463558,1709053690916,-500.0,0.00019178,2]
[315463559,1709053690939,-209.21007188,0.00019178,2]
[315463560,1709053690961,-501.95643743,0.00019178,2]
[315463561,1709053690984,-500.0,0.00019178,2]
[315463562,1709053691007,-500.0,0.00019178,2]
[315463563,1709053691043,-500.0,0.00019178,2]
[315463564,1709053691071,-846.45,0.00019178,2]
[315463565,1709053691101,-846.45,0.00019178,2]
[315463566,1709053691128,-846.45,0.00019178,2]
[315463567,1709053691155,-846.45,0.00019178,2]
[315463568,1709053691183,-846.45,0.00019178,2]
[315463569,1709053691208,-846.45,0.00019178,2]
[315463570,1709053691233,-500.0,0.00019178,2]
[315463571,1709053691260,-500.0,0.00019178,2]
[315463572,1709053691285,-500.0,0.00019178,2]
[315463573,1709053691309,-500.0,0.00019178,2]
[315463574,1709053691335,-501.21301573,0.00019178,2]
[315463575,1709053691360,-500.0,0.00019178,2]
[315463576,1709053691386,-500.0,0.00019178,2]
[315463577,1709053691410,-500.0,0.00019178,2]
[315463578,1709053691435,-4059.86,0.00019178,2]
[315463579,1709053691457,-500.0,0.00019178,2]
[315463580,1709053691480,-1844.93,0.00019178,2]
[315463581,1709053691505,-1827.57,0.00019178,2]
[315463582,1709053691529,-500.0,0.00019178,2]
[315463583,1709053691554,-2943.2,0.00019178,2]
[315463584,1709053691577,-683.94,0.00019178,2]
[315463585,1709053691600,-500.0,0.00019178,2]
[315463586,1709053691625,-500.0,0.00019178,2]
[315463587,1709053691651,-502.42542064,0.00019178,2]
[315463588,1709053691677,-190.12652069,0.00019178,2]
[315463589,1709053691700,-500.0,0.00019178,2]
[315463590,1709053691724,-500.0,0.00019178,2]
[315463591,1709053691748,-500.0,0.00019178,2]
[315463592,1709053691776,-500.0,0.00019178,2]
[315463593,1709053691799,-873.22,0.00019178,2]
[315463594,1709053691823,-500.0,0.00019178,2]
[315463595,1709053691848,-673.71,0.00019178,2]
[315463596,1709053691873,-500.0,0.00019178,2]
[315463597,1709053691897,-500.0,0.00019178,2]
[315463598,1709053691923,-500.0,0.00019178,2]
[315463599,1709053691949,-500.0,0.00019178,2]
[315463600,1709053691972,-500.0,0.00019178,2]
[315463601,1709053691996,-241.83685928,0.00019178,2]
[315463602,1709053692019,-500.0,0.00019178,2]
[315463603,1709053692043,-160.72308855,0.00019178,2]
[315463604,1709053692065,-211.14111785,0.00019178,2]
[315463605,1709053692089,-500.0,0.00019178,2]
[315463606,1709053692112,-500.0,0.00019178,2]
[315463607,1709053692134,-500.0,0.00019178,2]
[315463608,1709053692158,-500.0,0.00019178,2]
[315463609,1709053692183,-500.0,0.00019178,2]
[315463610,1709053692206,-500.0,0.00019178,2]
[315463611,1709053692229,-500.0,0.00019178,2]
[315463612,1709053692253,-500.0,0.00019178,2]
[315463613,1709053692277,-500.0,0.00019178,2]
[315463614,1709053692302,-255.55957885,0.00019178,2]
[315463615,1709053692328,-500.0,0.00019178,2]
[315463616,1709053692352,-838.02,0.00019178,2]
[315463617,1709053692377,-500.0,0.00019178,2]
[315463618,1709053692401,-500.0,0.00019178,2]
[315463619,1709053692426,-500.0,0.00019178,2]
[315463620,1709053692449,-502.22643844,0.00019178,2]
[315463621,1709053692472,-503.86862046,0.00019178,2]
[315463622,1709053692497,-298.46954899,0.00019178,2]
[315463623,1709053692521,-500.0,0.00019178,2]
[315463624,1709053692546,-500.0,0.00019178,2]
[315463625,1709053692570,-758.26,0.00019178,2]
[315463626,1709053692593,-500.0,0.00019178,2]
[315463627,1709053692617,-500.0,0.00019178,2]
[315463628,1709053692639,-507.68334626,0.00019178,2]
[315463629,1709053692667,-2659.7,0.00019178,2]
[315463630,1709053692690,-510.03816746,0.00019178,2]
[315463631,1709053692712,-500.0,0.00019178,2]
[315463632,1709053692737,-5605.7,0.00019178,2]
[315463633,1709053692760,-500.0,0.00019178,2]
[315463634,1709053692784,-500.0,0.00019178,2]
[315463635,1709053692808,-500.0,0.00019178,2]
[315463636,1709053692943,-500.86552404,0.00019178,2]
[315463637,1709053692969,-500.0,0.00019178,2]
[315463638,1709053692992,-500.0,0.00019178,2]
[315463639,1709053693017,-500.0,0.00019178,2]
[315463640,1709053693041,-500.0,0.00019178,2]
[315463641,1709053693064,-500.0,0.00019178,2]
[315463642,1709053693087,-500.0,0.00019178,2]
[315463643,1709053693110,-500.0,0.00019178,2]
[315463644,1709053693135,-2142.95,0.00019178,2]
[315463645,1709053693158,-1984.31,0.00019178,2]
[315463646,1709053693184,-500.0,0.00019178,2]
[315463647,1709053693209,-5393.14,0.00019178,2]
[315463648,1709053693237,-226.05511992,0.00019178,2]
[315463649,1709053693261,-500.0,0.00019178,2]
[315463650,1709053693286,-24206.87,0.00019178,2]
[315463651,1709053693309,-500.0,0.00019178,2]
[315463652,1709053693335,-500.0,0.00019178,2]
[315463653,1709053693358,-500.0,0.00019178,2]
[315463654,1709053693381,-153.64125717,0.00019178,2]
[315463655,1709053693405,-500.0,0.00019178,2]
[315463656,1709053693431,-1684.36,0.00019178,2]
[315463657,1709053693455,-500.0,0.00019178,2]
[315463658,1709053693477,-501.01152787,0.00019178,2]
[315463659,1709053693501,-500.0,0.00019178,2]
[315463660,1709053693526,-500.0,0.00019178,2]
[315463661,1709053693549,-500.0,0.00019178,2]
[315463662,1709053693573,-500.0,0.00019178,2]
[315463663,1709053693596,-500.0,0.00019178,2]
[315463664,1709053693620,-500.0,0.00019178,2]
[315463665,1709053693642,-500.0,0.00019178,2]
[315463666,1709053693665,-500.0,0.00019178,2]
[315463667,1709053693691,-500.0,0.00019178,2]
[315463668,1709053693714,-500.0,0.00019178,2]
[315463669,1709053693737,-500.0,0.00019178,2]
[315463670,1709053693760,-1939.47,0.00019178,2]
[315463671,1709053693783,-500.0,0.00019178,2]
[315463672,1709053693805,-500.0,0.00019178,2]
[315463673,1709053693830,-500.0,0.00019178,2]
[315463674,1709053693853,-462.93329581,0.00019178,2]
[315463675,1709053693875,-151.0,0.00019178,2]
[315463676,1709053693899,-500.0,0.00019178,2]
[315463677,1709053693922,-500.0,0.00019178,2]
[315463678,1709053693944,-500.0,0.00019178,2]
[315463679,1709053693981,-500.0,0.00019178,2]
[315463680,1709053694008,-500.0,0.00019178,2]
[315463681,1709053694033,-500.0,0.00019178,2]
[315463682,1709053694058,-500.0,0.00019178,2]
[315463683,1709053694082,-500.0,0.00019178,2]
[315463684,1709053694127,-1782.58,0.00019178,2]
[315463685,1709053694163,-500.0,0.00019178,2]
[315463686,1709053694195,-500.0,0.00019178,2]
[315463687,1709053694229,-500.0,0.00019178,2]
[315463688,1709053694267,-989.03,0.00019178,2]
[315463689,1709053694304,-500.0,0.00019178,2]
[315463690,1709053694334,-8853.6,0.00019178,2]
[315463691,1709053694365,-729.71,0.00019178,2]
[315463692,1709053694394,-500.0,0.00019178,2]
[315463693,1709053694427,-500.0,0.00019178,2]
[315463694,1709053694454,-694.64,0.00019178,2]
[315463695,1709053694489,-4185.28,0.00019178,2]
[315463696,1709053694524,-500.0,0.00019178,2]
[315463697,1709053694555,-882.47,0.00019178,2]
[315463698,1709053694586,-4878.61,0.00019178,2]
[315463699,1709053694615,-500.0,0.00019178,2]
[315463700,1709053694649,-4352.89,0.00019178,2]
[315463701,1709053694682,-21984.73,0.00019178,2]
[315463702,1709053694708,-500.0,0.00019178,2]
[315463703,1709053694734,-500.0,0.00019178,2]
[315463704,1709053694762,-500.0,0.00019178,2]
[315463705,1709053694793,-500.0,0.00019178,2]
[315463706,1709053694820,-500.0,0.00019178,2]
[315463707,1709053694848,-920.52,0.00019178,2]
[315463708,1709053694878,-3226.57,0.00019178,2]
[315463709,1709053694907,-500.0,0.00019178,2]
[315463710,1709053694936,-500.0,0.00019178,2]
[315463711,1709053694966,-306.64800142,0.00019178,2]
[315463712,1709053694994,-984.09,0.00019178,2]
[315463713,1709053695021,-500.0,0.00019178,2]
[315463714,1709053695050,-2838.36,0.00019178,2]
[315463715,1709053695077,-1374.59,0.00019178,2]
[315463716,1709053695105,-911.3,0.00019178,2]
[315463717,1709053695133,-500.0,0.00019178,2]
[315463718,1709053695162,-500.0,0.00019178,2]
[315463719,1709053695192,-502.09355324,0.00019178,2]
[315463720,1709053695221,-2293.72,0.00019178,2]
[315463721,1709053695251,-1120.11,0.00019178,2]
[315463722,1709053695278,-244.30017244,0.00019178,2]
[315463723,1709053695306,-500.0,0.00019178,2]
[315463724,1709053695337,-500.71114628,0.00019178,2]
[315463725,1709053695366,-890.52,0.00019178,2]
[315463726,1709053695393,-500.0,0.00019178,2]
[315463727,1709053695424,-500.0,0.00019178,2]
[315463728,1709053695450,-155.0,0.00019178,2]
[315463729,1709053695477,-500.0,0.00019178,2]
[315463730,1709053695637,-500.0,0.00019178,2]
[315463731,1709053695672,-500.0,0.00019178,2]
[315463732,1709053695699,-2124.69,0.00019178,2]
[315463733,1709053695725,-11017.86,0.00019178,2]
[315463734,1709053695750,-500.0,0.00019178,2]
[315463735,1709053695773,-500.0,0.00019178,2]
[315463736,1709053695796,-500.0,0.00019178,2]
[315463737,1709053695819,-500.0,0.00019178,2]
[315463738,1709053695843,-500.0,0.00019178,2]
[315463739,1709053695865,-500.0,0.00019178,2]
[315463740,1709053695887,-694.82180753,0.00019178,2]
[315463741,1709053695911,-186.288497,0.00019178,2]
[315463742,1709053695937,-186.181917,0.00019178,2]
[315463743,1709053695961,-166.666666,0.00019178,2]
[315463744,1709053695983,-209.644379,0.00019178,2]
[315463745,1709053696007,-200.6117409,0.000192,2]
[315463746,1709053696029,-153.0,0.000192,2]
[315463747,1709053696052,-153.0,0.000192,2]
[315463748,1709053696075,-200.6117409,0.000192,2]
[315463749,1709053696098,-634.06315932,0.00019248,2]
[315463750,1709053696120,-306.0,0.000193,2]
[315463751,1709053696147,-306.0,0.000193,2]
[315463752,1709053696171,-200.6117409,0.000193,2]
[315463753,1709053696195,-153.0,0.000193,2]
[315463754,1709053696219,-153.0,0.000193,2]
[315463755,1709053696244,-153.0,0.000193,2]
[315463756,1709053696271,-200.6117409,0.000193,2]
[315463757,1709053696293,-153.0,0.000193,2]
[315463758,1709053696316,-153.0,0.000193,2]
[315463759,1709053696339,-153.0,0.000193,2]
[315463760,1709053696363,-200.6117409,0.000193,2]
[315463761,1709053696385,-153.0,0.000193,2]
[315463762,1709053696410,-306.0,0.000193,2]
[315463763,1709053696433,-153.0,0.000193,2]